Workbook

Sheet App.2-BA_Fixed Asset Cont
L1: File Number: | M1: EB-2021-0050
L2: Appendix: | M2: H-1
L4: Date: | M4: 2021-08-27
A6: Appendix 2-BA
A7: Fixed Asset Continuity Schedule
E9: Accounting Standard | F9: CGAAP
E10: Year | F10: 2010
D12: Cost | J12: Accumulated Depreciation
A13: CCA Class | B13: OEB | C13: Description | D13: Opening Balance | E13: Additions | F13: Disposals | G13: Closing Balance | I13: Opening Balance | J13: Additions | K13: Disposals | L13: Closing Balance | M13: Net Book Value
A14: 12 | B14: 1611 | C14: Computer Software (Formally known as Account 1925) | D14: 102818 | E14: 60657 | F14: -25073 | G14: =D14+E14+F14 -> 138402 | I14: -43546 | J14: -32696 | K14: 25073 | L14: =I14+J14+K14 -> -51169 | M14: =G14+L14 -> 87233
A15: CEC | B15: 1612 | C15: Land Rights (Formally known as Account 1806) | D15: 37750 | E15: 2532 | G15: =D15+E15+F15 -> 40282 | I15: -31241 | J15: -3077 | L15: =I15+J15+K15 -> -34318 | M15: =G15+L15 -> 5964
A16: N/A | B16: 1805 | C16: Land | D16: 74127 | G16: =D16+E16+F16 -> 74127 | L16: =I16+J16+K16 -> 0 | M16: =G16+L16 -> 74127
A17: 47 | B17: 1808 | C17: Buildings | G17: =D17+E17+F17 -> 0 | L17: =I17+J17+K17 -> 0 | M17: =G17+L17 -> 0
A18: 13 | B18: 1810 | C18: Leasehold Improvements | G18: 0 | L18: 0 | M18: 0
A19: 47 | B19: 1815 | C19: Transformer Station Equipment >50 kV | G19: 0 | L19: 0 | M19: 0
A20: 47 | B20: 1820 | C20: Distribution Station Equipment <50 kV | D20: 3727428 | E20: 82027 | G20: 3809455 | I20: -2092870 | J20: -100855 | L20: -2193725 | M20: 1615730
A21: 47 | B21: 1825 | C21: Storage Battery Equipment | G21: 0 | L21: 0 | M21: 0
A22: 47 | B22: 1830 | C22: Poles, Towers & Fixtures | G22: 0 | L22: 0 | M22: 0
A23: 47 | B23: 1835 | C23: Overhead Conductors & Devices | D23: 12671355 | E23: 879428 | F23: -972915 | G23: =D23+E23+F23 -> 12577868 | I23: -5525246 | J23: -527052 | K23: 597625 | L23: -5454673 | M23: 7123195
A24: 47 | B24: 1840 | C24: Underground Conduit | D24: 4837412 | E24: 154797 | F24: -73040 | G24: 4919169 | I24: -2143535 | J24: -198920 | K24: 73040 | L24: -2269415 | M24: 2649754
A25: 47 | B25: 1845 | C25: Underground Conductors & Devices | G25: 0 | L25: 0 | M25: 0
A26: 47 | B26: 1850 | C26: Line Transformers | D26: 4187294 | E26: 19676 | F26: -275113 | G26: 3931857 | I26: -2713263 | J26: -164476 | K26: 275113 | L26: -2602626 | M26: 1329231
A27: 47 | B27: 1855 | C27: Services (Overhead & Underground) | D27: 1803920 | E27: 45923 | F27: -96069 | G27: 1753774 | I27: -990142 | J27: -73992 | K27: 96069 | L27: -968065 | M27: 785709
A28: 47 | B28: 1860 | C28: Meters | D28: 766981 | E28: 19699 | F28: -294124 | G28: 492556 | I28: -508371 | J28: -29467 | K28: 212006 | L28: -325832 | M28: 166724
A29: 47 | B29: 1860 | C29: Meters (Smart Meters) | G29: 0 | L29: 0 | M29: 0
A30: N/A | B30: 1905 | C30: Land | D30: 135692 | G30: 135692 | L30: 0 | M30: 135692
A31: 47 | B31: 1908 | C31: Buildings & Fixtures | D31: 1478406 | E31: 38472 | F31: -1595 | G31: 1515283 | I31: -744442 | J31: -33286 | K31: 1595 | L31: -776133 | M31: 739150
A32: 13 | B32: 1910 | C32: Leasehold Improvements | G32: 0 | L32: 0 | M32: 0
A33: 8 | B33: 1915 | C33: Office Furniture & Equipment (10 years) | D33: 47085 | E33: 11905 | F33: -5795 | G33: 53195 | I33: -23075 | J33: -5898 | K33: 5795 | L33: -23178 | M33: 30017
A34: 8 | B34: 1915 | C34: Office Furniture & Equipment (5 years) | G34: 0 | L34: 0 | M34: 0
A35: 10 | B35: 1920 | C35: Computer Equipment - Hardware | G35: 0 | L35: 0 | M35: 0
A36: 45 | B36: 1920 | C36: Computer Equip.-Hardware(Post Mar. 22/04) | G36: 0 | L36: 0 | M36: 0
A37: 50 | B37: 1920 | C37: Computer Equip.-Hardware(Post Mar. 19/07) | D37: 51070 | E37: 45267 | F37: -11732 | G37: 84605 | I37: -23663 | J37: -19266 | K37: 11732 | L37: -31197 | M37: 53408
A38: 10 | B38: 1930 | C38: Transportation Equipment | D38: 1829020 | E38: 82119 | F38: -57739 | G38: 1853400 | I38: -1097355 | J38: -178219 | K38: 57738 | L38: -1217836 | M38: 635564
A39: 8 | B39: 1935 | C39: Stores Equipment | D39: 29000 | F39: -29000 | G39: 0 | I39: -26100 | J39: -2900 | K39: 29000 | L39: 0 | M39: 0
A40: 8 | B40: 1940 | C40: Tools, Shop & Garage Equipment | D40: 207916 | E40: 27414 | F40: -4611 | G40: 230719 | I40: -84040 | J40: -23533 | K40: 4611 | L40: -102962 | M40: 127757
A41: 8 | B41: 1945 | C41: Measurement & Testing Equipment | G41: 0 | L41: 0 | M41: 0
A42: 8 | B42: 1950 | C42: Power Operated Equipment | G42: 0 | L42: 0 | M42: 0
A43: 8 | B43: 1955 | C43: Communications Equipment | G43: 0 | L43: 0 | M43: 0
A44: 8 | B44: 1955 | C44: Communication Equipment (Smart Meters) | G44: 0 | L44: 0 | M44: 0
A45: 8 | B45: 1960 | C45: Miscellaneous Equipment | G45: 0 | L45: 0 | M45: 0
A46: 47 | B46: 1970 | C46: Load Management Controls Customer Premises | G46: 0 | L46: 0 | M46: 0
A47: 47 | B47: 1975 | C47: Load Management Controls Utility Premises | G47: 0 | L47: 0 | M47: 0
A48: 47 | B48: 1980 | C48: System Supervisory Equipment | D48: 1754609 | G48: 1754609 | I48: -1587775 | J48: -21429 | L48: -1609204 | M48: 145405
A49: 47 | B49: 1985 | C49: Miscellaneous Fixed Assets | D49: 12584 | F49: -3576 | G49: 9008 | I49: -8902 | J49: -966 | K49: 3576 | L49: -6292 | M49: 2716
A50: 47 | B50: 1990 | C50: Other Tangible Property | G50: 0 | L50: 0 | M50: 0
A51: 47 | B51: 1995 | C51: Contributions & Grants | D51: -411379 | G51: -411379 | I51: 77938 | J51: 16455 | L51: 94393 | M51: -316986
A52: 47 | B52: 2440 | C52: Deferred Revenue5 | G52: 0 | M52: 0
C53: Work in Progress | G53: 0 | L53: 0 | M53: 0
C54: Sub-Total | D54: =SUM(D14:D53) -> 33343088 | E54: =SUM(E14:E53) -> 1469916 | F54: =SUM(F14:F53) -> -1850382 | G54: =SUM(G14:G53) -> 32962622 | I54: =SUM(I14:I53) -> -17565628 | J54: =SUM(J14:J53) -> -1399577 | K54: =SUM(K14:K53) -> 1392973 | L54: =SUM(L14:L53) -> -17572232 | M54: =SUM(M14:M53) -> 15390390
C55: Less Socialized Renewable Energy Generation Investments (input as negative) | G55: =D55+E55+F55 -> 0 | L55: =I55+J55+K55 -> 0 | M55: =G55+L55 -> 0
C56: Less Other Non Rate-Regulated Utility Assets (input as negative) | D56: =-D49-D53 -> -12584 | E56: =-E49-E53 -> 0 | F56: 3576 | G56: -9008 | I56: =-I49 -> 8902 | J56: =-J49 -> 966 | K56: -3576 | L56: 6292 | M56: -2716
C57: Total PP&E | D57: =SUM(D54:D56) -> 33330504 | E57: =SUM(E54:E56) -> 1469916 | F57: -1846806 | G57: 32953614 | I57: =SUM(I54:I56) -> -17556726 | J57: -1398611 | K57: 1389397 | L57: -17565940 | M57: 15387674
C58: Depreciation Expense adj. from gain or loss on the retirement of assets (pool of like assets), if applicable6
C59: Total | J59: =J57+J58 -> -1398611
I61: Less: Fully Allocated Depreciation
A62: 10 | C62: Transportation | I62: Transportation
A63: 8 | C63: Stores Equipment | I63: Stores Equipment
I64: Net Depreciation | K64: =J59-K62-K63 -> -1398611
A66: Notes:
A68: 1 | B68: Tables in the format outlined above covering all fixed asset accounts should be submitted for the Test Year, Bridge Year and all relevant historical years. At a minimum , the applicant must provide data for the earlier of: 1) all historical years back to its last rebasing; or 2) at least three years of historical actuals, in addition to Bridge Year and Test Year forecasts.
A71: 2 | B71: The "CCA Class" for fixed assets should agree with the CCA Class used for tax purposes in Tax Returns. Fixed Assets sub-components may be used where the underlying asset components are classified under multiple CCA Classes for tax purposes. If an applicant uses any different classes from those shown in the table, an explanation should be provided. (also see note 3 below).
A74: 3 | B74: The table may need to be customized for a utility's asset categories or for any new asset accounts announced or authorized by the Board.
A76: 4 | B76: The additions column (E) must not include construction work in progress (CWIP).
A78: 5 | B78: Effective on the date of IFRS adoption, customer contributions will no longer be recorded in Account 1995 Contributions & Grants, but will be recorded in Account 2440, Deferred Revenues.
A80: 6 | B80: Where a distributor for general financial reporting purposes under IFRS has accounted for the amount of gain or loss on the retirement of assets in a pool of like assets as a charge or credit to income, for reporting and rate application filings the distributor shall reclassify such gains and losses as depreciation expense, and disclose the amount separately.
A83: Appendix 2-BA
A84: Fixed Asset Continuity Schedule
E86: Accounting Standard | F86: CGAAP
E87: Year | F87: 2011
D89: Cost | J89: Accumulated Depreciation
A90: CCA Class | B90: OEB | C90: Description | D90: Opening Balance | E90: Additions | F90: Disposals | G90: Closing Balance | I90: Opening Balance | J90: Additions | K90: Disposals | L90: Closing Balance | M90: Net Book Value
A91: 12 | B91: 1611 | C91: Computer Software (Formally known as Account 1925) | D91: =G14 -> 138402 | E91: 83213 | F91: -14540 | G91: =D91+E91+F91 -> 207075 | I91: =L14 -> -51169 | J91: -44323 | K91: 14540 | L91: =I91+J91+K91 -> -80952 | M91: =G91+L91 -> 126123
A92: CEC | B92: 1612 | C92: Land Rights (Formally known as Account 1806) | D92: =G15 -> 40282 | G92: =D92+E92+F92 -> 40282 | I92: =L15 -> -34318 | J92: -2977 | L92: =I92+J92+K92 -> -37295 | M92: =G92+L92 -> 2987
A93: N/A | B93: 1805 | C93: Land | D93: 74127 | E93: 70010 | G93: =D93+E93+F93 -> 144137 | I93: 0 | L93: =I93+J93+K93 -> 0 | M93: =G93+L93 -> 144137
A94: 47 | B94: 1808 | C94: Buildings | D94: 0 | G94: =D94+E94+F94 -> 0 | I94: 0 | L94: =I94+J94+K94 -> 0 | M94: =G94+L94 -> 0
A95: 13 | B95: 1810 | C95: Leasehold Improvements | D95: 0 | G95: 0 | I95: 0 | L95: 0 | M95: 0
A96: 47 | B96: 1815 | C96: Transformer Station Equipment >50 kV | D96: 0 | G96: 0 | I96: 0 | L96: 0 | M96: 0
A97: 47 | B97: 1820 | C97: Distribution Station Equipment <50 kV | D97: 3809455 | E97: 107559 | F97: -21221 | G97: 3895793 | I97: -2193725 | J97: -111687 | K97: 21221 | L97: -2284191 | M97: 1611602
A98: 47 | B98: 1825 | C98: Storage Battery Equipment | D98: 0 | G98: 0 | I98: 0 | L98: 0 | M98: 0
A99: 47 | B99: 1830 | C99: Poles, Towers & Fixtures | D99: 0 | G99: 0 | I99: 0 | L99: 0 | M99: 0
A100: 47 | B100: 1835 | C100: Overhead Conductors & Devices | D100: 12577868 | E100: 1179828 | F100: -264266 | G100: 13493430 | I100: -5454673 | J100: -546299 | K100: 264266 | L100: -5736706 | M100: 7756724
A101: 47 | B101: 1840 | C101: Underground Conduit | D101: 4919169 | E101: 112850 | F101: -50577 | G101: 4981442 | I101: -2269415 | J101: -166901 | K101: 50577 | L101: -2385739 | M101: 2595703
A102: 47 | B102: 1845 | C102: Underground Conductors & Devices | D102: 0 | G102: 0 | I102: 0 | L102: 0 | M102: 0
A103: 47 | B103: 1850 | C103: Line Transformers | D103: 3931857 | E103: 58560 | F103: -252773 | G103: 3737644 | I103: -2602626 | J103: -156346 | K103: 252773 | L103: -2506199 | M103: 1231445
A104: 47 | B104: 1855 | C104: Services (Overhead & Underground) | D104: 1753774 | E104: 92041 | F104: -90822 | G104: 1754993 | I104: -968065 | J104: -73830 | K104: 90822 | L104: -951073 | M104: 803920
A105: 47 | B105: 1860 | C105: Meters | D105: 492556 | E105: 68668 | F105: -292850 | G105: 268374 | I105: -325832 | J105: -21109 | K105: 208284 | L105: -138657 | M105: 129717
A106: 47 | B106: 1860 | C106: Meters (Smart Meters) | D106: 0 | G106: 0 | I106: 0 | L106: 0 | M106: 0
A107: N/A | B107: 1905 | C107: Land | D107: 135692 | G107: 135692 | I107: 0 | L107: 0 | M107: 135692
A108: 47 | B108: 1908 | C108: Buildings & Fixtures | D108: 1515283 | E108: 42543 | G108: 1557826 | I108: -776133 | J108: -35204 | L108: -811337 | M108: 746489
A109: 13 | B109: 1910 | C109: Leasehold Improvements | D109: 0 | G109: 0 | I109: 0 | L109: 0 | M109: 0
A110: 8 | B110: 1915 | C110: Office Furniture & Equipment (10 years) | D110: 53195 | F110: -2536 | G110: 50659 | I110: -23178 | J110: -5321 | K110: 2536 | L110: -25963 | M110: 24696
A111: 8 | B111: 1915 | C111: Office Furniture & Equipment (5 years) | D111: 0 | G111: 0 | I111: 0 | L111: 0 | M111: 0
A112: 10 | B112: 1920 | C112: Computer Equipment - Hardware | D112: 0 | G112: 0 | I112: 0 | L112: 0 | M112: 0
A113: 45 | B113: 1920 | C113: Computer Equip.-Hardware(Post Mar. 22/04) | D113: 0 | G113: 0 | I113: 0 | L113: 0 | M113: 0
A114: 50 | B114: 1920 | C114: Computer Equip.-Hardware(Post Mar. 19/07) | D114: 84605 | E114: 76524 | F114: -12636 | G114: 148493 | I114: -31197 | J114: -32225 | K114: 12636 | L114: -50786 | M114: 97707
A115: 10 | B115: 1930 | C115: Transportation Equipment | D115: 1853400 | E115: 43866 | F115: -25496 | G115: 1871770 | I115: -1217836 | J115: -158677 | K115: 25496 | L115: -1351017 | M115: 520753
A116: 8 | B116: 1935 | C116: Stores Equipment | D116: 0 | G116: 0 | I116: 0 | L116: 0 | M116: 0
A117: 8 | B117: 1940 | C117: Tools, Shop & Garage Equipment | D117: 230719 | E117: 57469 | F117: -2436 | G117: 285752 | I117: -102962 | J117: -28820 | K117: 2436 | L117: -129346 | M117: 156406
A118: 8 | B118: 1945 | C118: Measurement & Testing Equipment | D118: 0 | G118: 0 | I118: 0 | L118: 0 | M118: 0
A119: 8 | B119: 1950 | C119: Power Operated Equipment | D119: 0 | G119: 0 | I119: 0 | L119: 0 | M119: 0
A120: 8 | B120: 1955 | C120: Communications Equipment | D120: 0 | G120: 0 | I120: 0 | L120: 0 | M120: 0
A121: 8 | B121: 1955 | C121: Communication Equipment (Smart Meters) | D121: 0 | G121: 0 | I121: 0 | L121: 0 | M121: 0
A122: 8 | B122: 1960 | C122: Miscellaneous Equipment | D122: 0 | G122: 0 | I122: 0 | L122: 0 | M122: 0
A123: 47 | B123: 1970 | C123: Load Management Controls Customer Premises | D123: 0 | G123: 0 | I123: 0 | L123: 0 | M123: 0
A124: 47 | B124: 1975 | C124: Load Management Controls Utility Premises | D124: 0 | G124: 0 | I124: 0 | L124: 0 | M124: 0
A125: 47 | B125: 1980 | C125: System Supervisory Equipment | D125: 1754609 | G125: 1754609 | I125: -1609204 | J125: -20773 | L125: =I125+J125+K125 -> -1629977 | M125: 124632
A126: 47 | B126: 1985 | C126: Miscellaneous Fixed Assets | D126: 9008 | F126: -3168 | G126: 5840 | I126: -6292 | J126: -901 | K126: 3169 | L126: -4024 | M126: 1816
A127: 47 | B127: 1990 | C127: Other Tangible Property | D127: 0 | G127: 0 | I127: 0 | L127: 0 | M127: 0
A128: 47 | B128: 1995 | C128: Contributions & Grants | D128: -411379 | E128: -93570 | G128: -504949 | I128: 94393 | J128: 20193 | L128: 114586 | M128: -390363
A129: 47 | B129: 2440 | C129: Deferred Revenue5 | D129: 0 | G129: 0 | I129: 0 | M129: 0
C130: Work in Progress | D130: 0 | G130: =D130+E130+F130 -> 0 | I130: 0 | L130: =I130+J130+K130 -> 0 | M130: =G130+L130 -> 0
C131: Sub-Total | D131: =SUM(D91:D130) -> 32962622 | E131: =SUM(E91:E130) -> 1899561 | F131: =SUM(F91:F130) -> -1033321 | G131: =SUM(G91:G130) -> 33828862 | I131: =SUM(I91:I130) -> -17572232 | J131: =SUM(J91:J130) -> -1385200 | K131: =SUM(K91:K130) -> 948756 | L131: =SUM(L91:L130) -> -18008676 | M131: =SUM(M91:M130) -> 15820186
C132: Less Socialized Renewable Energy Generation Investments (input as negative) | G132: =D132+E132+F132 -> 0 | L132: =I132+J132+K132 -> 0 | M132: =G132+L132 -> 0
C133: Less Other Non Rate-Regulated Utility Assets (input as negative) | D133: =-D126-D130 -> -9008 | E133: =-E126-E130 -> 0 | F133: 3168 | G133: =D133+E133+F133 -> -5840 | I133: =-I126 -> 6292 | J133: =-J126 -> 901 | K133: -3169 | L133: 4024 | M133: -1816
C134: Total PP&E | D134: =SUM(D131:D133) -> 32953614 | E134: =SUM(E131:E133) -> 1899561 | F134: -1030153 | G134: 33823022 | I134: =SUM(I131:I133) -> -17565940 | J134: -1384299 | K134: 945587 | L134: -18004652 | M134: 15818370
C135: Depreciation Expense adj. from gain or loss on the retirement of assets (pool of like assets), if applicable6
C136: Total | J136: =J134+J135 -> -1384299
I138: Less: Fully Allocated Depreciation
A139: 10 | C139: Transportation | I139: Transportation
A140: 8 | C140: Stores Equipment | I140: Stores Equipment
I141: Net Depreciation | K141: =J136-K139-K140 -> -1384299
A143: Appendix 2-BA
A144: Fixed Asset Continuity Schedule
E146: Accounting Standard | F146: CGAAP
E147: Year | F147: 2012
D149: Cost | J149: Accumulated Depreciation
A150: CCA Class | B150: OEB | C150: Description | D150: Opening Balance | E150: Additions | F150: Disposals | G150: Closing Balance | I150: Opening Balance | J150: Additions | K150: Disposals | L150: Closing Balance | M150: Net Book Value
A151: 12 | B151: 1611 | C151: Computer Software (Formally known as Account 1925) | D151: =G91 -> 207075 | E151: 101736 | F151: -10611 | G151: =D151+E151+F151 -> 298200 | I151: =L91 -> -80952 | J151: -64483 | K151: 10611 | L151: =I151+J151+K151 -> -134824 | M151: =G151+L151 -> 163376
A152: CEC | B152: 1612 | C152: Land Rights (Formally known as Account 1806) | D152: =G92 -> 40282 | E152: 1695 | G152: =D152+E152+F152 -> 41977 | I152: =L92 -> -37295 | J152: -2043 | L152: =I152+J152+K152 -> -39338 | M152: =G152+L152 -> 2639
A153: N/A | B153: 1805 | C153: Land | D153: 144137 | G153: =D153+E153+F153 -> 144137 | I153: 0 | L153: =I153+J153+K153 -> 0 | M153: =G153+L153 -> 144137
A154: 47 | B154: 1808 | C154: Buildings | D154: 0 | G154: =D154+E154+F154 -> 0 | I154: 0 | L154: =I154+J154+K154 -> 0 | M154: =G154+L154 -> 0
A155: 13 | B155: 1810 | C155: Leasehold Improvements | D155: 0 | G155: 0 | I155: 0 | L155: 0 | M155: 0
A156: 47 | B156: 1815 | C156: Transformer Station Equipment >50 kV | D156: 0 | G156: 0 | I156: 0 | L156: 0 | M156: 0
A157: 47 | B157: 1820 | C157: Distribution Station Equipment <50 kV | D157: 3895793 | E157: 152775 | G157: 4048568 | I157: -2284191 | J157: -109098 | L157: -2393289 | M157: 1655279
A158: 47 | B158: 1825 | C158: Storage Battery Equipment | D158: 0 | G158: 0 | I158: 0 | L158: 0 | M158: 0
A159: 47 | B159: 1830 | C159: Poles, Towers & Fixtures | D159: 0 | G159: 0 | I159: 0 | L159: 0 | M159: 0
A160: 47 | B160: 1835 | C160: Overhead Conductors & Devices | D160: 13493430 | E160: 1223389 | F160: -337438 | G160: 14379381 | I160: -5736706 | J160: -564199 | K160: 337438 | L160: -5963467 | M160: 8415914
A161: 47 | B161: 1840 | C161: Underground Conduit | D161: 4981442 | E161: 292831 | F161: -167692 | G161: 5106581 | I161: -2385739 | J161: -204344 | K161: 167692 | L161: -2422391 | M161: 2684190
A162: 47 | B162: 1845 | C162: Underground Conductors & Devices | D162: 0 | G162: 0 | I162: 0 | L162: 0 | M162: 0
A163: 47 | B163: 1850 | C163: Line Transformers | D163: 3737644 | E163: 141332 | F163: -387459 | G163: 3491517 | I163: -2506199 | J163: -149546 | K163: 387459 | L163: -2268286 | M163: 1223231
A164: 47 | B164: 1855 | C164: Services (Overhead & Underground) | D164: 1754993 | E164: 119677 | F164: -111338 | G164: 1763332 | I164: -951073 | J164: -72591 | K164: 111338 | L164: -912326 | M164: 851006
A165: 47 | B165: 1860 | C165: Meters | D165: 268374 | E165: 46042 | F165: -16724 | G165: 297692 | I165: -138657 | J165: -11079 | K165: 16724 | L165: -133012 | M165: 164680
A166: 47 | B166: 1860 | C166: Meters (Smart Meters) | D166: 0 | E166: 2288157 | G166: 2288157 | I166: 0 | J166: -261335 | L166: -261335 | M166: 2026822
A167: N/A | B167: 1905 | C167: Land | D167: 135692 | G167: 135692 | I167: 0 | L167: 0 | M167: 135692
A168: 47 | B168: 1908 | C168: Buildings & Fixtures | D168: 1557826 | E168: 71321 | G168: 1629147 | I168: -811337 | J168: -36933 | L168: -848270 | M168: 780877
A169: 13 | B169: 1910 | C169: Leasehold Improvements | D169: 0 | G169: 0 | I169: 0 | L169: 0 | M169: 0
A170: 8 | B170: 1915 | C170: Office Furniture & Equipment (10 years) | D170: 50659 | E170: 13798 | F170: -6218 | G170: 58239 | I170: -25963 | J170: -5757 | K170: 6218 | L170: -25502 | M170: 32737
A171: 8 | B171: 1915 | C171: Office Furniture & Equipment (5 years) | D171: 0 | G171: 0 | I171: 0 | L171: 0 | M171: 0
A172: 10 | B172: 1920 | C172: Computer Equipment - Hardware | D172: 0 | G172: 0 | I172: 0 | L172: 0 | M172: 0
A173: 45 | B173: 1920 | C173: Computer Equip.-Hardware(Post Mar. 22/04) | D173: 0 | G173: 0 | I173: 0 | L173: 0 | M173: 0
A174: 50 | B174: 1920 | C174: Computer Equip.-Hardware(Post Mar. 19/07) | D174: 148493 | E174: 95485 | F174: -6774 | G174: 237204 | I174: -50786 | J174: -42419 | K174: 6774 | L174: -86431 | M174: 150773
A175: 10 | B175: 1930 | C175: Transportation Equipment | D175: 1871770 | E175: 15120 | G175: 1886890 | I175: -1351017 | J175: -140173 | L175: -1491190 | M175: 395700
A176: 8 | B176: 1935 | C176: Stores Equipment | D176: 0 | G176: 0 | I176: 0 | L176: 0 | M176: 0
A177: 8 | B177: 1940 | C177: Tools, Shop & Garage Equipment | D177: 285752 | E177: 16072 | F177: -30577 | G177: 271247 | I177: -129346 | J177: -29380 | K177: 30577 | L177: -128149 | M177: 143098
A178: 8 | B178: 1945 | C178: Measurement & Testing Equipment | D178: 0 | G178: 0 | I178: 0 | L178: 0 | M178: 0
A179: 8 | B179: 1950 | C179: Power Operated Equipment | D179: 0 | G179: 0 | I179: 0 | L179: 0 | M179: 0
A180: 8 | B180: 1955 | C180: Communications Equipment | D180: 0 | G180: 0 | I180: 0 | L180: 0 | M180: 0
A181: 8 | B181: 1955 | C181: Communication Equipment (Smart Meters) | D181: 0 | G181: 0 | I181: 0 | L181: 0 | M181: 0
A182: 8 | B182: 1960 | C182: Miscellaneous Equipment | D182: 0 | G182: 0 | I182: 0 | L182: 0 | M182: 0
A183: 47 | B183: 1970 | C183: Load Management Controls Customer Premises | D183: 0 | G183: 0 | I183: 0 | L183: 0 | M183: 0
A184: 47 | B184: 1975 | C184: Load Management Controls Utility Premises | D184: 0 | G184: 0 | I184: 0 | L184: 0 | M184: 0
A185: 47 | B185: 1980 | C185: System Supervisory Equipment | D185: 1754609 | E185: 59348 | G185: 1813957 | I185: -1629977 | J185: -23739 | L185: =I185+J185+K185 -> -1653716 | M185: 160241
A186: 47 | B186: 1985 | C186: Miscellaneous Fixed Assets | D186: 5840 | F186: -620 | G186: 5220 | I186: -4024 | J186: -584 | K186: 619 | L186: =I186+J186+K186 -> -3989 | M186: 1231
A187: 47 | B187: 1990 | C187: Other Tangible Property | D187: 0 | G187: 0 | I187: 0 | L187: 0 | M187: 0
A188: 47 | B188: 1995 | C188: Contributions & Grants | D188: -504949 | E188: -26240 | G188: -531189 | I188: 114586 | J188: 20723 | L188: 135309 | M188: -395880
A189: 47 | B189: 2440 | C189: Deferred Revenue5 | D189: 0 | G189: 0 | I189: 0 | M189: =G189+L189 -> 0
C190: Work in Progress | D190: 0 | E190: 26783 | G190: =D190+E190+F190 -> 26783 | I190: 0 | L190: =I190+J190+K190 -> 0 | M190: =G190+L190 -> 26783
C191: Sub-Total | D191: =SUM(D151:D190) -> 33828862 | E191: =SUM(E151:E190) -> 4639321 | F191: =SUM(F151:F190) -> -1075451 | G191: =SUM(G151:G190) -> 37392732 | I191: =SUM(I151:I190) -> -18008676 | J191: =SUM(J151:J190) -> -1696980 | K191: =SUM(K151:K190) -> 1075450 | L191: =SUM(L151:L190) -> -18630206 | M191: =SUM(M151:M190) -> 18762526
C192: Less Socialized Renewable Energy Generation Investments (input as negative) | G192: =D192+E192+F192 -> 0 | L192: =I192+J192+K192 -> 0 | M192: =G192+L192 -> 0
C193: Less Other Non Rate-Regulated Utility Assets (input as negative) | D193: =-D186-D190 -> -5840 | E193: =-E186-E190 -> -26783 | F193: 620 | G193: =D193+E193+F193 -> -32003 | I193: =-I186 -> 4024 | J193: =-J186 -> 584 | K193: -619 | L193: 3989 | M193: -28014
C194: Total PP&E | D194: =SUM(D191:D193) -> 33823022 | E194: =SUM(E191:E193) -> 4612538 | F194: -1074831 | G194: 37360729 | I194: =SUM(I191:I193) -> -18004652 | J194: -1696396 | K194: 1074831 | L194: -18626217 | M194: 18734512
C195: Depreciation Expense adj. from gain or loss on the retirement of assets (pool of like assets), if applicable6
C196: Total | J196: =J194+J195 -> -1696396
I198: Less: Fully Allocated Depreciation
A199: 10 | C199: Transportation | I199: Transportation
A200: 8 | C200: Stores Equipment | I200: Stores Equipment
I201: Net Depreciation | K201: =J196-K199-K200 -> -1696396
A202: ORILLIA POWER DISTRIBUTION CORPORATION
A203: Appendix 2-BA
A204: Fixed Asset Continuity Schedule
E206: Accounting Standard | F206: CGAAP | G206: Former CGAAP without changes in policies
E207: Year | F207: 2013
D209: Cost | J209: Accumulated Depreciation
A210: CCA Class | B210: OEB | C210: Description | D210: Opening Balance | E210: Additions | F210: Disposals | G210: Closing Balance | I210: Opening Balance | J210: Additions | K210: Disposals | L210: Closing Balance | M210: Net Book Value
A211: 12 | B211: 1611 | C211: Computer Software (Formally known as Account 1925) | D211: =G151 -> 298200 | E211: 35029 | F211: -52594 | G211: =D211+E211+F211 -> 280635 | I211: =L151 -> -134824 | J211: -63143 | K211: 52594 | L211: =I211+J211+K211 -> -145373 | M211: =G211+L211 -> 135262
A212: CEC | B212: 1612 | C212: Land Rights (Formally known as Account 1806) | D212: =G152 -> 41977 | G212: =D212+E212+F212 -> 41977 | I212: =L152 -> -39338 | J212: -945 | L212: =I212+J212+K212 -> -40283 | M212: =G212+L212 -> 1694
A213: N/A | B213: 1805 | C213: Land | D213: 144137 | G213: =D213+E213+F213 -> 144137 | I213: 0 | L213: =I213+J213+K213 -> 0 | M213: =G213+L213 -> 144137
A214: 47 | B214: 1808 | C214: Buildings | D214: 0 | G214: =D214+E214+F214 -> 0 | I214: 0 | L214: =I214+J214+K214 -> 0 | M214: =G214+L214 -> 0
A215: 13 | B215: 1810 | C215: Leasehold Improvements | D215: 0 | G215: 0 | I215: 0 | L215: 0 | M215: 0
A216: 47 | B216: 1815 | C216: Transformer Station Equipment >50 kV | D216: 0 | G216: 0 | I216: 0 | L216: 0 | M216: 0
A217: 47 | B217: 1820 | C217: Distribution Station Equipment <50 kV | D217: 4048568 | E217: 78328 | G217: 4126896 | I217: -2393289 | J217: -115821 | L217: -2509110 | M217: 1617786
A218: 47 | B218: 1825 | C218: Storage Battery Equipment | D218: 0 | G218: 0 | I218: 0 | L218: 0 | M218: 0
A219: 47 | B219: 1830 | C219: Poles, Towers & Fixtures | G219: 0 | L219: 0 | M219: 0
A220: 47 | B220: 1835 | C220: Overhead Conductors & Devices | D220: =G160 -> 14379381 | E220: =1525238+882440 -> 2407678 | F220: =-89219-91847 -> -181066 | G220: 16605993 | I220: =L160 -> -5963467 | J220: =-239917-383407 -> -623324 | K220: =53611+54903 -> 108514 | L220: -6478277 | M220: 10127716
A221: 47 | B221: 1840 | C221: Underground Conduit | D221: =G161 -> 5106581 | E221: =11621+34689 -> 46310 | G221: 5152891 | I221: =L161 -> -2422391 | J221: -204417 | L221: -2626808 | M221: 2526083
A222: 47 | B222: 1845 | C222: Underground Conductors & Devices | G222: 0 | L222: 0 | M222: 0
A223: 47 | B223: 1850 | C223: Line Transformers | D223: 3491517 | E223: 357105 | F223: -4960 | G223: 3843662 | I223: -2268286 | J223: -144675 | K223: 4266 | L223: -2408695 | M223: 1434967
A224: 47 | B224: 1855 | C224: Services (Overhead & Underground) | D224: 1763332 | E224: 29982 | G224: 1793314 | I224: -912326 | J224: -71130 | L224: -983456 | M224: 809858
A225: 47 | B225: 1860 | C225: Meters | D225: 297692 | E225: 20197 | F225: -8703 | G225: 309186 | I225: -133012 | J225: -11735 | K225: 8703 | L225: -136044 | M225: 173142
... 875 more rows

Sheet App.2-EC_1576 (2013) - 1 Year
M1: File Number: | N1: EB-2021-0050
M2: Appendix: | N2: H-2
M4: Date: | N4: 2027-08-27
A6: Appendix 2-EC
A7: Account 1576 - Accounting Changes under CGAAP
A8: 2013 Changes in Accounting Policies under CGAAP
A10: For applicants with a balance in Account 1576 and made capitalization and depreciation expense accounting policy changes under CGAAP effective January 1, 2013. This is the first time the applicant is rebasing with changes in these accounting policies.
B14: Prior Years Rebasing | C14: 2013 | D14: 2014 | E14: 2015 | F14: 2016 | G14: 2017 | H14: 2018 | I14: 2019 | J14: 2020 | K14: Rebasing Year
A15: Reporting Basis | B15: CGAAP | C15: CGAAP | D15: CGAAP | E15: MIFRS - Note 5 | F15: MIFRS | G15: MIFRS | H15: MIFRS | I15: MIFRS | J15: MIFRS | K15: MIFRS
B16: Actual | C16: Actual | D16: Actual | E16: Actual | F16: Actual | G16: Actual | H16: Actual | I16: Actual | J16: Actual | K16: Forecast
C17: $ | D17: $ | F17: $
A18: PP&E Values under former CGAAP
A19: Opening net PP&E - Note 1 | C19: 18734512 | D19: =+C22 -> 19823766 | E19: =+D22 -> 20266699 | F19: =+E22 -> 20560014.84 | G19: =+F22 -> 23950713.09 | H19: =+G22 -> 25242154.09 | I19: 25438812.4 | J19: 27689020.73
A20: Net Additions - Note 4 | C20: 2242197 | D20: 1966045 | E20: 1955079 | F20: 5057100 | G20: 2892811 | H20: 1959705 | I20: 3941784 | J20: -2577448.19
A21: Net Depreciation (amounts should be negative) - Note 4 | C21: -1152943 | D21: -1523112 | E21: -1661763.16 | F21: -1666401.75 | G21: -1601370 | H21: -1763046.69 | I21: -1691575.67 | J21: 1618117.933
A22: Closing net PP&E (1) | C22: =C19+C20+C21 -> 19823766 | D22: =D19+D20+D21 -> 20266699 | E22: =E19+E20+E21 -> 20560014.84 | F22: =F19+F20+F21 -> 23950713.09 | G22: =G19+G20+G21 -> 25242154.09 | H22: =H19+H20+H21 -> 25438812.4 | I22: 27689020.73 | J22: 26729690.47
A24: PP&E Values under revised CGAAP (Starts from 2013)
A25: Opening net PP&E - Note 1 | C25: 18734512 | D25: =+C28 -> 20465932 | E25: =+D28 -> 21554760 | F25: =+E28 -> 22471576.13 | G25: =+F28 -> 26500950.13 | H25: =+G28 -> 28461504.73 | I25: 29323744.88 | J25: 32238422.72
A26: Net Additions - Note 4 | C26: 2242197 | D26: 1966045 | E26: 1955079 | F26: 5057100 | G26: 2892811 | H26: 1959705 | I26: 3941784 | J26: -2577448.19
A27: Net Depreciation (amounts should be negative) - Note 4 | C27: -510777 | D27: -877217 | E27: -1038262.87 | F27: -1027726 | G27: -932256.4 | H27: -1097464.85 | I27: -1027106.16 | J27: 2074311.88
A28: Closing net PP&E (2) | C28: =SUM(C25:C27) -> 20465932 | D28: =SUM(D25:D27) -> 21554760 | E28: =SUM(E25:E27) -> 22471576.13 | F28: =SUM(F25:F27) -> 26500950.13 | G28: =SUM(G25:G27) -> 28461504.73 | H28: =SUM(H25:H27) -> 29323744.88 | I28: 32238422.72 | J28: 31735286.41
A30: Difference in Closing net PP&E, former CGAAP vs. revised CGAAP | C30: =C22-C28 -> -642166 | D30: =D22-D28 -> -1288061 | E30: =E22-E28 -> -1911561.29 | F30: =F22-F28 -> -2550237.04 | G30: =G22-G28 -> -3219350.64 | H30: =H22-H28 -> -3884932.48 | I30: -4549401.99 | J30: =J22-J28 -> -5005595.937
D32: =D30-C30 -> -645895 | E32: =E30-D30 -> -623500.29 | F32: -638675.75 | G32: -669113.6 | H32: -665581.84 | I32: =I30-H30 -> -664469.51 | J32: =J30-I30 -> -456193.9466
A33: Effect on Deferral and Variance Account Rate Riders
A34: Closing balance in Account 1576 | K34: =J30 -> -5005595.937 | M34: WACC | N34: 0.05
A35: Return on Rate Base Associated with Account 1576 balance at WACC - Note 2 | K35: =J30*N34*N35 -> -250279.7968 | L35: # of years of rate rider disposition period | N35: 1
A36: Amount included in Deferral and Variance Account Rate Rider Calculation | K36: =K34+K35 -> -5255875.733
A38: Regulatory Account - Account 4305 | C38: =C30 -> -642166 | D38: =D32 -> -645895 | E38: -623500.29 | F38: -638675.75 | G38: -669113.6 | H38: -665581.84 | I38: =I32 -> -664469.51 | J38: =-437895-0.33 -> -437895.33 | K38: Note 6 | M38: Note 6 - Difference between booked Aug 31, 2020 and differential cell L35:
A39: Refunded - interim rate rider | F39: 1390338.02 | G39: 3636.72
A40: Balance Account 1576 per Continuity Schedule | C40: =C38+C39 -> -642166 | D40: =C40+D38+D39 -> -1288061 | E40: -1911561.29 | F40: -1159899.02 | G40: -1825375.9 | H40: -2490957.74 | I40: -3155427.25 | J40: -3593322.58 | K40: Note 7 | P40: Difference calculated above | Q40: =J32 -> -456193.9466
P41: CGAAP differential booked | Q41: =J38 -> -437895.33
P42: Net difference due to adjusting for building & SCADA | Q42: =+Q40-Q41 -> -18298.61659
A43: Amount requested for disposition in EB-2021-0050 | J43: =K35+J40 -> -3843602.377 | P43: See separate tab
M45: The building and SCADA System were disposed in full at August 2020. Therefore the remaining balances in cost and accumulated depreciation were removed. This impacted the C-GAAP vs IFRS differential by $18,300 and has not been reflected in the 1576 account balance because the assets are no longer in Orillia's PPE.
A51: Notes:
A52: 1 For an applicant that made the capitalization and depreciation expense accounting policy changes on January 1, 2013, the PP&E values as of January 1, 2013 under both former CGAAP and revised CGAAP should be the same.
A53: 2 Return on rate base associated with Account 1576 balance is calculated as:
A54: the variance account ending balance as of 2017 x WACC X # of years of rate rider disposition period
A55: * Please note that the calculation should be adjusted once WACC is updated and finalized in the rate application.
A56: 3 Account 1576 is cleared by including the total balance in the deferral and variance account rate rider calculation.
A57: 4 Net additions are additions net of disposals; Net depreciation is additions to depreciation net of disposals.
A58: 5 Differences due to the adoption of MIFRS are to be shown separately in Account 1575 in Appendix 2-EA as Accounts 1575 and 1576 cannot be used interchangably.
A59: 7 Life to date balance as at December 31, 2020 reconciles to the trial balance.

Sheet App.2-EC_1576 (2013) - 2 Year
M1: File Number: | N1: EB-2021-0050
M2: Appendix: | N2: H-3
M4: Date: | N4: 2027-08-27
A6: Appendix 2-EC
A7: Account 1576 - Accounting Changes under CGAAP
A8: 2013 Changes in Accounting Policies under CGAAP
A10: For applicants with a balance in Account 1576 and made capitalization and depreciation expense accounting policy changes under CGAAP effective January 1, 2013. This is the first time the applicant is rebasing with changes in these accounting policies.
B14: Prior Years Rebasing | C14: 2013 | D14: 2014 | E14: 2015 | F14: 2016 | G14: 2017 | H14: 2018 | I14: 2019 | J14: 2020 | K14: Rebasing Year
A15: Reporting Basis | B15: CGAAP | C15: CGAAP | D15: CGAAP | E15: MIFRS - Note 5 | F15: MIFRS | G15: MIFRS | H15: MIFRS | I15: MIFRS | J15: MIFRS | K15: MIFRS
B16: Actual | C16: Actual | D16: Actual | E16: Actual | F16: Actual | G16: Actual | H16: Actual | I16: Actual | J16: Actual | K16: Forecast
C17: $ | D17: $ | F17: $
A18: PP&E Values under former CGAAP
A19: Opening net PP&E - Note 1 | C19: 18734512 | D19: =+C22 -> 19823766 | E19: =+D22 -> 20266699 | F19: =+E22 -> 20560014.84 | G19: =+F22 -> 23950713.09 | H19: =+G22 -> 25242154.09 | I19: 25438812.4 | J19: 27689020.73
A20: Net Additions - Note 4 | C20: 2242197 | D20: 1966045 | E20: 1955079 | F20: 5057100 | G20: 2892811 | H20: 1959705 | I20: 3941784 | J20: -2577448.19
A21: Net Depreciation (amounts should be negative) - Note 4 | C21: -1152943 | D21: -1523112 | E21: -1661763.16 | F21: -1666401.75 | G21: -1601370 | H21: -1763046.69 | I21: -1691575.67 | J21: 1618117.933
A22: Closing net PP&E (1) | C22: =C19+C20+C21 -> 19823766 | D22: =D19+D20+D21 -> 20266699 | E22: =E19+E20+E21 -> 20560014.84 | F22: =F19+F20+F21 -> 23950713.09 | G22: =G19+G20+G21 -> 25242154.09 | H22: =H19+H20+H21 -> 25438812.4 | I22: 27689020.73 | J22: 26729690.47
A24: PP&E Values under revised CGAAP (Starts from 2013)
A25: Opening net PP&E - Note 1 | C25: 18734512 | D25: =+C28 -> 20465932 | E25: =+D28 -> 21554760 | F25: =+E28 -> 22471576.13 | G25: =+F28 -> 26500950.13 | H25: =+G28 -> 28461504.73 | I25: 29323744.88 | J25: 32238422.72
A26: Net Additions - Note 4 | C26: 2242197 | D26: 1966045 | E26: 1955079 | F26: 5057100 | G26: 2892811 | H26: 1959705 | I26: 3941784 | J26: -2577448.19
A27: Net Depreciation (amounts should be negative) - Note 4 | C27: -510777 | D27: -877217 | E27: -1038262.87 | F27: -1027726 | G27: -932256.4 | H27: -1097464.85 | I27: -1027106.16 | J27: 2074311.88
A28: Closing net PP&E (2) | C28: =SUM(C25:C27) -> 20465932 | D28: =SUM(D25:D27) -> 21554760 | E28: =SUM(E25:E27) -> 22471576.13 | F28: =SUM(F25:F27) -> 26500950.13 | G28: =SUM(G25:G27) -> 28461504.73 | H28: =SUM(H25:H27) -> 29323744.88 | I28: 32238422.72 | J28: 31735286.41
A30: Difference in Closing net PP&E, former CGAAP vs. revised CGAAP | C30: =C22-C28 -> -642166 | D30: =D22-D28 -> -1288061 | E30: =E22-E28 -> -1911561.29 | F30: =F22-F28 -> -2550237.04 | G30: =G22-G28 -> -3219350.64 | H30: =H22-H28 -> -3884932.48 | I30: -4549401.99 | J30: =J22-J28 -> -5005595.937
D32: =D30-C30 -> -645895 | E32: =E30-D30 -> -623500.29 | F32: -638675.75 | G32: -669113.6 | H32: -665581.84 | I32: =I30-H30 -> -664469.51 | J32: =J30-I30 -> -456193.9466
A33: Effect on Deferral and Variance Account Rate Riders
A34: Closing balance in Account 1576 | K34: =J30 -> -5005595.937 | M34: WACC | N34: 0.05
A35: Return on Rate Base Associated with Account 1576 balance at WACC - Note 2 | K35: =J30*N34*N35 -> -500559.5937 | L35: # of years of rate rider disposition period | N35: 2
A36: Amount included in Deferral and Variance Account Rate Rider Calculation | K36: =K34+K35 -> -5506155.53
A38: Regulatory Account - Account 4305 | C38: =C30 -> -642166 | D38: =D32 -> -645895 | E38: -623500.29 | F38: -638675.75 | G38: -669113.6 | H38: -665581.84 | I38: =I32 -> -664469.51 | J38: =-437895-0.33 -> -437895.33 | K38: Note 6 | M38: Note 6 - Difference between booked Aug 31, 2020 and differential cell L35:
A39: Refunded - interim rate rider | F39: 1390338.02 | G39: 3636.72
A40: Balance Account 1576 per Continuity Schedule | C40: =C38+C39 -> -642166 | D40: =C40+D38+D39 -> -1288061 | E40: -1911561.29 | F40: -1159899.02 | G40: -1825375.9 | H40: -2490957.74 | I40: -3155427.25 | J40: -3593322.58 | K40: Note 7 | P40: Difference calculated above | Q40: =J32 -> -456193.9466
P41: CGAAP differential booked | Q41: =J38 -> -437895.33
P42: Net difference due to adjusting for building & SCADA | Q42: =+Q40-Q41 -> -18298.61659
A43: Amount requested for disposition in EB-2021-0050 | J43: =K35+J40 -> -4093882.174 | P43: See separate tab
M45: The building and SCADA System were disposed in full at August 2020. Therefore the remaining balances in cost and accumulated depreciation were removed. This impacted the C-GAAP vs IFRS differential by $18,300 and has not been reflected in the 1576 account balance because the assets are no longer in Orillia's PPE.
A51: Notes:
A52: 1 For an applicant that made the capitalization and depreciation expense accounting policy changes on January 1, 2013, the PP&E values as of January 1, 2013 under both former CGAAP and revised CGAAP should be the same.
A53: 2 Return on rate base associated with Account 1576 balance is calculated as:
A54: the variance account ending balance as of 2017 x WACC X # of years of rate rider disposition period
A55: * Please note that the calculation should be adjusted once WACC is updated and finalized in the rate application.
A56: 3 Account 1576 is cleared by including the total balance in the deferral and variance account rate rider calculation.
A57: 4 Net additions are additions net of disposals; Net depreciation is additions to depreciation net of disposals.
A58: 5 Differences due to the adoption of MIFRS are to be shown separately in Account 1575 in Appendix 2-EA as Accounts 1575 and 1576 cannot be used interchangably.
A59: 7 Life to date balance as at December 31, 2020 reconciles to the trial balance.
